[Event "Betsys MČR v online bleskovém šachu 2021"]
[Site "Chess.com"]
[Date "2021.04.17"]
[Round "11"]
[White "Marcus_Aurelius_CZ"]
[Black "Danyjel"]
[Result "0-1"]
[WhiteElo "1422"]
[BlackElo "1697"]
[TimeControl "180+1"]
[EndTime "10:45:17 PDT"]
[Termination "Uživatel Danyjel zvítězil po vzdání soupeře"]

1. e4 {[%clk 0:03:00.9]} 1... e5 {[%clk 0:02:59.9]} 2. Nf3 {[%clk 0:03:00.9]}
2... Nc6 {[%clk 0:02:59.6]} 3. Bc4 {[%clk 0:03:01.3]} 3... Bc5 {[%clk 0:02:59]}
4. Nc3 {[%clk 0:03:00.6]} 4... d6 {[%clk 0:02:58.7]} 5. d3 {[%clk 0:03:00.1]}
5... Nf6 {[%clk 0:02:57.3]} 6. Bg5 {[%clk 0:03:00.3]} 6... h6 {[%clk 0:02:55.8]}
7. Bxf6 {[%clk 0:02:59.5]} 7... Qxf6 {[%clk 0:02:55.2]} 8. Nd5 {[%clk
0:02:58.5]} 8... Qd8 {[%clk 0:02:55.2]} 9. O-O {[%clk 0:02:52.7]} 9... Bg4
{[%clk 0:02:55]} 10. h3 {[%clk 0:02:50]} 10... Bh5 {[%clk 0:02:46.8]} 11. c3
{[%clk 0:02:48.4]} 11... O-O {[%clk 0:02:45.9]} 12. g4 {[%clk 0:02:46.5]} 12...
Bg6 {[%clk 0:02:45.2]} 13. Nh4 {[%clk 0:02:46.9]} 13... Qxh4 {[%clk 0:02:44.7]}
14. Kg2 {[%clk 0:02:46]} 14... Bb6 {[%clk 0:02:36.8]} 15. f4 {[%clk 0:02:42.7]}
15... exf4 {[%clk 0:02:34.8]} 16. Rxf4 {[%clk 0:02:42.1]} 16... Ne5 {[%clk
0:02:26.7]} 17. Ne7+ {[%clk 0:02:36.3]} 17... Kh7 {[%clk 0:02:18.8]} 18. Nxg6
{[%clk 0:02:33.2]} 18... fxg6 {[%clk 0:02:10.8]} 19. Rxf8 {[%clk 0:02:32.7]}
19... Rxf8 {[%clk 0:02:09.6]} 20. d4 {[%clk 0:02:29.2]} 20... Qf2+ {[%clk
0:02:00.9]} 21. Kh1 {[%clk 0:02:28]} 21... Nxc4 {[%clk 0:01:58.5]} 0-1

[Event "Betsys MČR v online bleskovém šachu 2021"]
[Site "Chess.com"]
[Date "2021.04.17"]
[Round "11"]
[White "MaTpAt113"]
[Black "NikolaKusova"]
[Result "1-0"]
[WhiteElo "903"]
[BlackElo "958"]
[TimeControl "180+1"]
[EndTime "10:45:38 PDT"]
[Termination "Uživatel MaTpAt113 zvítězil matem"]

1. e4 {[%clk 0:03:00.9]} 1... e5 {[%clk 0:02:58.4]} 2. Nf3 {[%clk 0:03:00.2]}
2... Nf6 {[%clk 0:02:55.8]} 3. Nc3 {[%clk 0:02:58.7]} 3... Nc6 {[%clk
0:02:54.5]} 4. d4 {[%clk 0:02:58.1]} 4... exd4 {[%clk 0:02:53.3]} 5. Nxd4 {[%clk
0:02:56.7]} 5... Bc5 {[%clk 0:02:50.3]} 6. Be3 {[%clk 0:02:54.3]} 6... O-O
{[%clk 0:02:47.5]} 7. Nxc6 {[%clk 0:02:51.8]} 7... bxc6 {[%clk 0:02:45.4]} 8.
Bxc5 {[%clk 0:02:51.2]} 8... Re8 {[%clk 0:02:42.7]} 9. Bc4 {[%clk 0:02:42.2]}
9... Nxe4 {[%clk 0:02:28.1]} 10. O-O {[%clk 0:02:37]} 10... Nxc5 {[%clk
0:02:23.3]} 11. Qh5 {[%clk 0:02:24.9]} 11... Ne6 {[%clk 0:02:05.2]} 12. Rfe1
{[%clk 0:02:18.5]} 12... Nf4 {[%clk 0:01:57.5]} 13. Qxf7+ {[%clk 0:02:12]} 13...
Kh8 {[%clk 0:01:38.3]} 14. Rxe8+ {[%clk 0:02:10.6]} 14... Qxe8 {[%clk 0:01:36]}
15. Qxe8# {[%clk 0:02:09.9]} 1-0

[Event "Betsys MČR v online bleskovém šachu 2021"]
[Site "Chess.com"]
[Date "2021.04.17"]
[Round "11"]
[White "Tah_na_g12"]
[Black "MatejKopecky13"]
[Result "0-1"]
[WhiteElo "1176"]
[BlackElo "1499"]
[TimeControl "180+1"]
[EndTime "10:45:39 PDT"]
[Termination "Uživatel MatejKopecky13 zvítězil matem"]

1. e3 {[%clk 0:02:56.3]} 1... e6 {[%clk 0:02:48.8]} 2. d4 {[%clk 0:02:53.4]}
2... Nf6 {[%clk 0:02:47.4]} 3. Bc4 {[%clk 0:02:50]} 3... d5 {[%clk 0:02:45.6]}
4. Bd3 {[%clk 0:02:49.1]} 4... Nbd7 {[%clk 0:02:40.3]} 5. Nf3 {[%clk 0:02:48.8]}
5... c5 {[%clk 0:02:38.4]} 6. dxc5 {[%clk 0:02:46.3]} 6... Nxc5 {[%clk
0:02:36.8]} 7. Nc3 {[%clk 0:02:45.4]} 7... Nxd3+ {[%clk 0:02:36.5]} 8. Qxd3
{[%clk 0:02:43.5]} 8... Bb4 {[%clk 0:02:36.1]} 9. a3 {[%clk 0:02:41.9]} 9...
Bxc3+ {[%clk 0:02:36.1]} 10. Qxc3 {[%clk 0:02:41.2]} 10... Bd7 {[%clk 0:02:37]}
11. Bd2 {[%clk 0:02:39.7]} 11... Rc8 {[%clk 0:02:36.8]} 12. Qd3 {[%clk
0:02:34.6]} 12... Ne4 {[%clk 0:02:32.7]} 13. O-O {[%clk 0:02:33.1]} 13... a6
{[%clk 0:02:28.5]} 14. Ne5 {[%clk 0:02:27.9]} 14... Bb5 {[%clk 0:02:27.1]} 15.
Qd4 {[%clk 0:02:20.9]} 15... Bxf1 {[%clk 0:02:25.8]} 16. Rxf1 {[%clk 0:02:21.8]}
16... Rxc2 {[%clk 0:02:23.8]} 17. Bc3 {[%clk 0:02:18.2]} 17... Nxc3 {[%clk
0:02:13.7]} 18. bxc3 {[%clk 0:02:19.1]} 18... O-O {[%clk 0:02:09.6]} 19. f4
{[%clk 0:02:05.8]} 19... Qh4 {[%clk 0:02:04.8]} 20. g3 {[%clk 0:02:01.9]} 20...
Qh3 {[%clk 0:02:03.7]} 21. Nd7 {[%clk 0:01:57]} 21... Qxh2# {[%clk 0:02:03.1]}
0-1

[Event "Betsys MČR v online bleskovém šachu 2021"]
[Site "Chess.com"]
[Date "2021.04.17"]
[Round "11"]
[White "Herracek"]
[Black "KJ327NR"]
[Result "1-0"]
[WhiteElo "2614"]
[BlackElo "2360"]
[TimeControl "180+1"]
[EndTime "10:45:43 PDT"]
[Termination "Uživatel Herracek zvítězil po vzdání soupeře"]

1. c4 {[%clk 0:03:00.9]} 1... Nf6 {[%clk 0:02:59.4]} 2. g3 {[%clk 0:03:00.9]}
2... g6 {[%clk 0:02:59.3]} 3. Bg2 {[%clk 0:03:01.4]} 3... Bg7 {[%clk 0:02:59.9]}
4. Nc3 {[%clk 0:03:02.3]} 4... O-O {[%clk 0:03:00.1]} 5. d3 {[%clk 0:03:02.8]}
5... d6 {[%clk 0:03:00.3]} 6. Bg5 {[%clk 0:03:02.8]} 6... h6 {[%clk 0:02:58.5]}
7. Bd2 {[%clk 0:03:02.8]} 7... Nc6 {[%clk 0:02:56.9]} 8. Qc1 {[%clk 0:03:03.7]}
8... Kh7 {[%clk 0:02:56.4]} 9. h4 {[%clk 0:03:04.1]} 9... e5 {[%clk 0:02:53.7]}
10. h5 {[%clk 0:03:03.9]} 10... g5 {[%clk 0:02:53]} 11. Nf3 {[%clk 0:03:04.5]}
11... Bg4 {[%clk 0:02:46.3]} 12. Bxg5 {[%clk 0:03:02.9]} 12... hxg5 {[%clk
0:02:25.3]} 13. Nxg5+ {[%clk 0:03:03.8]} 13... Kg8 {[%clk 0:02:23.4]} 14. h6
{[%clk 0:03:04.7]} 14... Bh8 {[%clk 0:02:23.3]} 15. h7+ {[%clk 0:03:04.9]} 15...
Kg7 {[%clk 0:02:21.4]} 16. Nge4 {[%clk 0:03:05]} 16... Nh5 {[%clk 0:01:15]} 17.
f3 {[%clk 0:03:04.9]} 17... f5 {[%clk 0:01:08.1]} 18. fxg4 {[%clk 0:02:56.6]}
18... fxe4 {[%clk 0:01:08.2]} 19. Rxh5 {[%clk 0:02:55.8]} 19... Qf6 {[%clk
0:01:02.7]} 20. Nxe4 {[%clk 0:02:55.5]} 1-0

[Event "Betsys MČR v online bleskovém šachu 2021"]
[Site "Chess.com"]
[Date "2021.04.17"]
[Round "11"]
[White "SamikGame"]
[Black "LightningAttack_2000"]
[Result "1-0"]
[WhiteElo "1704"]
[BlackElo "1864"]
[TimeControl "180+1"]
[EndTime "10:45:57 PDT"]
[Termination "Uživatel SamikGame zvítězil po vzdání soupeře"]

1. e4 {[%clk 0:03:00.9]} 1... c5 {[%clk 0:02:59.3]} 2. c4 {[%clk 0:02:59.4]}
2... g6 {[%clk 0:02:58.1]} 3. Nc3 {[%clk 0:02:54.7]} 3... Bg7 {[%clk 0:02:57.9]}
4. g3 {[%clk 0:02:52.5]} 4... Nc6 {[%clk 0:02:57.4]} 5. Bg2 {[%clk 0:02:49.9]}
5... Nd4 {[%clk 0:02:57.6]} 6. Nge2 {[%clk 0:02:46.5]} 6... e6 {[%clk
0:02:57.6]} 7. Nxd4 {[%clk 0:02:36.2]} 7... cxd4 {[%clk 0:02:57.6]} 8. Nb5
{[%clk 0:02:21.1]} 8... d6 {[%clk 0:02:43.2]} 9. Qa4 {[%clk 0:02:17.5]} 9... Ke7
{[%clk 0:02:32.3]} 10. d3 {[%clk 0:02:10.7]} 10... Bd7 {[%clk 0:02:32]} 11. Qa3
{[%clk 0:02:01.4]} 11... Bc6 {[%clk 0:02:28.2]} 12. Bg5+ {[%clk 0:01:56.9]}
12... f6 {[%clk 0:02:27.9]} 13. Bf4 {[%clk 0:01:48.6]} 13... e5 {[%clk
0:02:27.7]} 14. Bd2 {[%clk 0:01:46.4]} 14... a6 {[%clk 0:02:27.6]} 15. Nxd6
{[%clk 0:01:30.2]} 1-0

[Event "Betsys MČR v online bleskovém šachu 2021"]
[Site "Chess.com"]
[Date "2021.04.17"]
[Round "11"]
[White "horvi1"]
[Black "PetrVelicka"]
[Result "0-1"]
[WhiteElo "2233"]
[BlackElo "2371"]
[TimeControl "180+1"]
[EndTime "10:46:02 PDT"]
[Termination "Uživatel PetrVelicka zvítězil po vzdání soupeře"]

1. Nf3 {[%clk 0:02:58.1]} 1... Nf6 {[%clk 0:02:58.9]} 2. b3 {[%clk 0:02:57.5]}
2... d5 {[%clk 0:02:57.9]} 3. Bb2 {[%clk 0:02:57.5]} 3... Bg4 {[%clk 0:02:58]}
4. Ne5 {[%clk 0:02:56.6]} 4... Bh5 {[%clk 0:02:55.9]} 5. c4 {[%clk 0:02:50.6]}
5... e6 {[%clk 0:02:54.5]} 6. h3 {[%clk 0:02:45.3]} 6... Nbd7 {[%clk 0:02:52.9]}
7. g4 {[%clk 0:02:44.3]} 7... Nxe5 {[%clk 0:02:51.6]} 8. Bxe5 {[%clk 0:02:43.6]}
8... Bg6 {[%clk 0:02:49.8]} 9. d3 {[%clk 0:02:42.5]} 9... Bd6 {[%clk 0:02:48.5]}
10. f4 {[%clk 0:02:36.7]} 10... Bxe5 {[%clk 0:02:46.7]} 11. fxe5 {[%clk
0:02:36]} 11... Nd7 {[%clk 0:02:47.3]} 12. d4 {[%clk 0:02:27.9]} 12... Qh4+
{[%clk 0:02:43.3]} 13. Kd2 {[%clk 0:02:20.9]} 13... Be4 {[%clk 0:02:41.6]} 14.
Rg1 {[%clk 0:01:43.1]} 14... Qf2 {[%clk 0:02:38.8]} 15. Bg2 {[%clk 0:01:40]}
15... Bxg2 {[%clk 0:02:36.5]} 16. Kc3 {[%clk 0:01:29.8]} 16... Be4 {[%clk
0:02:28.3]} 17. Nd2 {[%clk 0:01:24.1]} 17... Qe3+ {[%clk 0:02:28.2]} 18. Kb4
{[%clk 0:01:16.6]} 18... Qxd4 {[%clk 0:02:27.1]} 19. Nxe4 {[%clk 0:01:16.4]}
19... Qxe4 {[%clk 0:02:26.7]} 20. Kc3 {[%clk 0:01:10.4]} 20... Qxe5+ {[%clk
0:02:25.6]} 0-1

[Event "Betsys MČR v online bleskovém šachu 2021"]
[Site "Chess.com"]
[Date "2021.04.17"]
[Round "11"]
[White "Dan1612"]
[Black "Rubinus"]
[Result "0-1"]
[WhiteElo "1959"]
[BlackElo "2157"]
[TimeControl "180+1"]
[EndTime "10:46:03 PDT"]
[Termination "Uživatel Rubinus zvítězil po vzdání soupeře"]

1. e4 {[%clk 0:03:00.9]} 1... c5 {[%clk 0:02:59.3]} 2. Nf3 {[%clk 0:03:00.5]}
2... d6 {[%clk 0:02:58.7]} 3. d4 {[%clk 0:02:59.9]} 3... cxd4 {[%clk 0:02:58.9]}
4. Nxd4 {[%clk 0:03:00.4]} 4... Nf6 {[%clk 0:02:59.5]} 5. Nc3 {[%clk 0:03:00.7]}
5... a6 {[%clk 0:03:00]} 6. Bg5 {[%clk 0:03:01.3]} 6... e6 {[%clk 0:02:59.9]} 7.
f4 {[%clk 0:03:01.2]} 7... b5 {[%clk 0:03:00]} 8. e5 {[%clk 0:02:56.7]} 8...
dxe5 {[%clk 0:02:59.3]} 9. fxe5 {[%clk 0:02:56.9]} 9... Qc7 {[%clk 0:02:59.4]}
10. exf6 {[%clk 0:02:55.8]} 10... Qe5+ {[%clk 0:02:58.7]} 11. Be2 {[%clk
0:02:48.7]} 11... Qxg5 {[%clk 0:02:58.6]} 12. fxg7 {[%clk 0:02:48.6]} 12... Bxg7
{[%clk 0:02:54.1]} 13. O-O {[%clk 0:02:42.4]} 13... Qe3+ {[%clk 0:02:51.9]} 14.
Rf2 {[%clk 0:02:42.4]} 14... Qxd4 {[%clk 0:02:50.6]} 15. Qf1 {[%clk 0:02:42]}
15... Ra7 {[%clk 0:02:42.2]} 16. Bxb5+ {[%clk 0:02:37.9]} 16... Kf8 {[%clk
0:02:11.5]} 17. Rd1 {[%clk 0:02:29.9]} 17... Qb6 {[%clk 0:02:07.4]} 18. Bc4
{[%clk 0:01:54.6]} 18... Bd4 {[%clk 0:02:06.3]} 19. Na4 {[%clk 0:01:51.2]} 19...
Bxf2+ {[%clk 0:02:04.7]} 20. Kh1 {[%clk 0:01:51.7]} 20... Qe3 {[%clk 0:01:59.1]}
0-1

[Event "Betsys MČR v online bleskovém šachu 2021"]
[Site "Chess.com"]
[Date "2021.04.17"]
[Round "11"]
[White "povrlak60"]
[Black "VildaSt"]
[Result "1-0"]
[WhiteElo "1579"]
[BlackElo "1294"]
[TimeControl "180+1"]
[EndTime "10:46:03 PDT"]
[Termination "Uživatel povrlak60 zvítězil matem"]

1. e4 {[%clk 0:02:49.9]} 1... e5 {[%clk 0:02:59.7]} 2. d4 {[%clk 0:02:49.1]}
2... exd4 {[%clk 0:02:59.2]} 3. Qxd4 {[%clk 0:02:48.9]} 3... Nc6 {[%clk
0:02:59.3]} 4. Qe3 {[%clk 0:02:48.4]} 4... b6 {[%clk 0:02:57]} 5. Nc3 {[%clk
0:02:47.1]} 5... Bb7 {[%clk 0:02:55]} 6. Bc4 {[%clk 0:02:44.3]} 6... Bc5 {[%clk
0:02:49.9]} 7. Qg3 {[%clk 0:02:42.5]} 7... Qf6 {[%clk 0:02:40.1]} 8. Nd5 {[%clk
0:02:41.3]} 8... Qd6 {[%clk 0:02:32.3]} 9. Nxc7+ {[%clk 0:02:38.9]} 9... Kd8
{[%clk 0:02:27.7]} 10. Qxd6 {[%clk 0:02:35.8]} 10... Bxd6 {[%clk 0:02:27]} 11.
Nxa8 {[%clk 0:02:35.6]} 11... Bxa8 {[%clk 0:02:26.7]} 12. Bxf7 {[%clk
0:02:34.9]} 12... Nh6 {[%clk 0:02:26.5]} 13. Bxh6 {[%clk 0:02:34]} 13... gxh6
{[%clk 0:02:25]} 14. O-O-O {[%clk 0:02:33.6]} 14... Ne5 {[%clk 0:02:24.2]} 15.
Bd5 {[%clk 0:02:31.7]} 15... Bxd5 {[%clk 0:02:22.3]} 16. Rxd5 {[%clk 0:02:29.7]}
16... Ke7 {[%clk 0:02:21.8]} 17. f3 {[%clk 0:02:28.5]} 17... Rg8 {[%clk
0:02:19.4]} 18. g4 {[%clk 0:02:26.2]} 18... h5 {[%clk 0:02:19.4]} 19. h3 {[%clk
0:02:25.4]} 19... hxg4 {[%clk 0:02:17.2]} 20. hxg4 {[%clk 0:02:25]} 20... Rh8
{[%clk 0:02:16.2]} 21. b3 {[%clk 0:02:18.3]} 21... Bc5 {[%clk 0:02:16.2]} 22.
Rxe5+ {[%clk 0:02:15.1]} 22... Kd8 {[%clk 0:02:13.9]} 23. Ne2 {[%clk 0:02:10.5]}
23... Bd6 {[%clk 0:02:11.5]} 24. Rd5 {[%clk 0:02:07.7]} 24... Bc5 {[%clk
0:02:10.4]} 25. c4 {[%clk 0:02:05.7]} 25... Rf8 {[%clk 0:02:09.1]} 26. f4 {[%clk
0:02:03.3]} 26... Be3+ {[%clk 0:02:08.1]} 27. Kc2 {[%clk 0:02:03.1]} 27... Bxf4
{[%clk 0:02:07.6]} 28. Nxf4 {[%clk 0:02:03]} 28... Rxf4 {[%clk 0:02:06.7]} 29.
Rxh7 {[%clk 0:02:02.2]} 29... Rxg4 {[%clk 0:02:06.6]} 30. Rdxd7+ {[%clk
0:02:00.8]} 30... Ke8 {[%clk 0:02:05.8]} 31. Rxa7 {[%clk 0:01:59.5]} 31... Kf8
{[%clk 0:02:03.6]} 32. Ra8# {[%clk 0:01:57.2]} 1-0

[Event "Betsys MČR v online bleskovém šachu 2021"]
[Site "Chess.com"]
[Date "2021.04.17"]
[Round "11"]
[White "Jacques_se_mas"]
[Black "MatyldaCZ"]
[Result "1-0"]
[WhiteElo "1739"]
[BlackElo "1430"]
[TimeControl "180+1"]
[EndTime "10:46:05 PDT"]
[Termination "Uživatel Jacques_se_mas zvítězil po vzdání soupeře"]

1. d4 {[%clk 0:03:00.9]} 1... Nf6 {[%clk 0:02:59.4]} 2. Bg5 {[%clk 0:03:00.7]}
2... e6 {[%clk 0:02:58.1]} 3. e3 {[%clk 0:02:56]} 3... d5 {[%clk 0:02:58.1]} 4.
c4 {[%clk 0:02:53.8]} 4... c6 {[%clk 0:02:57.6]} 5. Nc3 {[%clk 0:02:52.6]} 5...
Be7 {[%clk 0:02:54.7]} 6. Bxf6 {[%clk 0:02:48.3]} 6... Bxf6 {[%clk 0:02:54.3]}
7. cxd5 {[%clk 0:02:44.7]} 7... cxd5 {[%clk 0:02:53.5]} 8. Bd3 {[%clk
0:02:42.2]} 8... Nc6 {[%clk 0:02:53.1]} 9. Nf3 {[%clk 0:02:42.1]} 9... O-O
{[%clk 0:02:52.8]} 10. a3 {[%clk 0:02:42.3]} 10... Re8 {[%clk 0:02:52.8]} 11.
Ne5 {[%clk 0:02:38]} 11... Nxe5 {[%clk 0:02:52.1]} 12. dxe5 {[%clk 0:02:38.6]}
12... Bxe5 {[%clk 0:02:52.4]} 13. Qh5 {[%clk 0:02:34.1]} 13... g6 {[%clk
0:02:51.3]} 14. Qxe5 {[%clk 0:02:33.2]} 14... Qb6 {[%clk 0:02:27]} 15. b4 {[%clk
0:02:17.5]} 15... Qc6 {[%clk 0:02:24.2]} 16. O-O {[%clk 0:02:12.1]} 16... Rf8
{[%clk 0:02:14.2]} 17. Rfc1 {[%clk 0:02:06.7]} 17... Qe8 {[%clk 0:02:11.5]} 18.
Nb5 {[%clk 0:02:03.4]} 18... Qe7 {[%clk 0:02:07.1]} 19. Nc7 {[%clk 0:01:53.1]}
19... Rb8 {[%clk 0:02:06.1]} 20. Nxd5 {[%clk 0:01:50.6]} 20... Qd7 {[%clk
0:02:00.4]} 21. Nf6+ {[%clk 0:01:50.3]} 1-0

[Event "Betsys MČR v online bleskovém šachu 2021"]
[Site "Chess.com"]
[Date "2021.04.17"]
[Round "11"]
[White "alenka777"]
[Black "zaciname"]
[Result "1-0"]
[WhiteElo "1283"]
[BlackElo "744"]
[TimeControl "180+1"]
[EndTime "10:46:08 PDT"]
[Termination "Uživatel alenka777 zvítězil matem"]

1. e4 {[%clk 0:03:00.9]} 1... e5 {[%clk 0:02:59]} 2. Bc4 {[%clk 0:02:59.6]} 2...
Bc5 {[%clk 0:02:57.2]} 3. Qf3 {[%clk 0:02:59.5]} 3... Qf6 {[%clk 0:02:54.5]} 4.
Qxf6 {[%clk 0:02:58.3]} 4... Nxf6 {[%clk 0:02:53.5]} 5. Nc3 {[%clk 0:02:57]}
5... O-O {[%clk 0:02:48.5]} 6. Nf3 {[%clk 0:02:56.5]} 6... Ng4 {[%clk
0:02:45.8]} 7. O-O {[%clk 0:02:55.1]} 7... d6 {[%clk 0:02:45.9]} 8. h3 {[%clk
0:02:52.6]} 8... Nf6 {[%clk 0:02:41.4]} 9. Nd5 {[%clk 0:02:50.6]} 9... Nxd5
{[%clk 0:02:30.9]} 10. Bxd5 {[%clk 0:02:49.7]} 10... c6 {[%clk 0:02:30.4]} 11.
Bc4 {[%clk 0:02:49.3]} 11... b5 {[%clk 0:02:27.6]} 12. Be2 {[%clk 0:02:48.1]}
12... Be6 {[%clk 0:02:26]} 13. a3 {[%clk 0:02:47.6]} 13... h6 {[%clk 0:02:25.3]}
14. b4 {[%clk 0:02:47.7]} 14... Bb6 {[%clk 0:02:24.9]} 15. d3 {[%clk 0:02:43.9]}
15... a5 {[%clk 0:02:24.4]} 16. bxa5 {[%clk 0:02:42]} 16... Rxa5 {[%clk
0:02:19.1]} 17. c4 {[%clk 0:02:41.6]} 17... b4 {[%clk 0:02:15.8]} 18. Bb2 {[%clk
0:02:39]} 18... bxa3 {[%clk 0:02:10.9]} 19. Rxa3 {[%clk 0:02:37.1]} 19... Bc5
{[%clk 0:02:05.6]} 20. Rxa5 {[%clk 0:02:36]} 20... Nd7 {[%clk 0:02:02.9]} 21.
Rfa1 {[%clk 0:02:32.4]} 21... f5 {[%clk 0:01:49.3]} 22. exf5 {[%clk 0:02:30.9]}
22... Bxf5 {[%clk 0:01:47.7]} 23. Ra8 {[%clk 0:02:24.6]} 23... Rxa8 {[%clk
0:01:33.9]} 24. Rxa8+ {[%clk 0:02:23.1]} 24... Kh7 {[%clk 0:01:32.6]} 25. Nh4
{[%clk 0:02:21.3]} 25... Be6 {[%clk 0:01:28.2]} 26. Bh5 {[%clk 0:02:18.1]} 26...
Nf6 {[%clk 0:01:26.7]} 27. Bg6# {[%clk 0:02:17.3]} 1-0

[Event "Betsys MČR v online bleskovém šachu 2021"]
[Site "Chess.com"]
[Date "2021.04.17"]
[Round "11"]
[White "Bartusman"]
[Black "Michelangelo111"]
[Result "0-1"]
[WhiteElo "1976"]
[BlackElo "2114"]
[TimeControl "180+1"]
[EndTime "10:46:29 PDT"]
[Termination "Uživatel Michelangelo111 zvítězil matem"]

1. e4 {[%clk 0:03:00.9]} 1... c5 {[%clk 0:02:58.4]} 2. Nf3 {[%clk 0:03:01.1]}
2... Nc6 {[%clk 0:02:57.4]} 3. b3 {[%clk 0:03:01]} 3... e5 {[%clk 0:02:50.1]} 4.
Bb2 {[%clk 0:03:00.9]} 4... d6 {[%clk 0:02:49.3]} 5. g3 {[%clk 0:03:01.3]} 5...
g6 {[%clk 0:02:46.9]} 6. Bg2 {[%clk 0:03:01.8]} 6... Bg7 {[%clk 0:02:47.4]} 7.
O-O {[%clk 0:03:02.3]} 7... Nge7 {[%clk 0:02:47.5]} 8. Nc3 {[%clk 0:03:03]} 8...
O-O {[%clk 0:02:46.9]} 9. d3 {[%clk 0:03:03.6]} 9... Nd4 {[%clk 0:02:44.9]} 10.
a4 {[%clk 0:03:02.7]} 10... Nec6 {[%clk 0:02:41.8]} 11. Nd2 {[%clk 0:03:01.6]}
11... h5 {[%clk 0:02:35.3]} 12. Nc4 {[%clk 0:03:01.2]} 12... Be6 {[%clk
0:02:24.5]} 13. Kh1 {[%clk 0:02:55.7]} 13... h4 {[%clk 0:02:21.7]} 14. Re1
{[%clk 0:02:32.7]} 14... h3 {[%clk 0:02:09]} 15. Bf1 {[%clk 0:02:32.5]} 15...
Qf6 {[%clk 0:02:04.4]} 16. Nxd6 {[%clk 0:02:04.2]} 16... Qxf2 {[%clk 0:01:58.8]}
17. Nxb7 {[%clk 0:01:19.2]} 17... Nf3 {[%clk 0:01:50.3]} 18. Re2 {[%clk
0:01:15.5]} 18... Qg1# {[%clk 0:01:48.5]} 0-1

[Event "Betsys MČR v online bleskovém šachu 2021"]
[Site "Chess.com"]
[Date "2021.04.17"]
[Round "11"]
[White "FBingoPlayer"]
[Black "MrNikdo"]
[Result "1-0"]
[WhiteElo "2182"]
[BlackElo "2049"]
[TimeControl "180+1"]
[EndTime "10:46:38 PDT"]
[Termination "Uživatel FBingoPlayer zvítězil po vzdání soupeře"]

1. Nc3 {[%clk 0:03:00.9]} 1... Nf6 {[%clk 0:02:59.5]} 2. e4 {[%clk 0:03:01.3]}
2... e5 {[%clk 0:02:59.2]} 3. f4 {[%clk 0:03:00.3]} 3... d5 {[%clk 0:02:59.4]}
4. fxe5 {[%clk 0:02:59.4]} 4... Nxe4 {[%clk 0:02:58.8]} 5. Qf3 {[%clk
0:02:59.8]} 5... Nxc3 {[%clk 0:02:56.2]} 6. dxc3 {[%clk 0:02:59.4]} 6... Nc6
{[%clk 0:02:56.8]} 7. Bf4 {[%clk 0:02:59.1]} 7... Be7 {[%clk 0:02:53.8]} 8.
O-O-O {[%clk 0:02:57.2]} 8... Be6 {[%clk 0:02:53.9]} 9. Bd3 {[%clk 0:02:48.1]}
9... Bg5 {[%clk 0:02:45.2]} 10. Qe3 {[%clk 0:02:39.1]} 10... Bxf4 {[%clk
0:02:42.4]} 11. Qxf4 {[%clk 0:02:40]} 11... Qe7 {[%clk 0:02:42.9]} 12. Nf3
{[%clk 0:02:38.8]} 12... O-O-O {[%clk 0:02:41.9]} 13. Kb1 {[%clk 0:02:36.9]}
13... Rhe8 {[%clk 0:02:39.8]} 14. Rhe1 {[%clk 0:02:36.5]} 14... h6 {[%clk
0:02:33.4]} 15. a3 {[%clk 0:02:36.5]} 15... g5 {[%clk 0:02:29.8]} 16. Qa4 {[%clk
0:02:36.3]} 16... Qc5 {[%clk 0:02:24.7]} 17. Nd4 {[%clk 0:02:30]} 17... Bd7
{[%clk 0:01:58.9]} 18. Nb3 {[%clk 0:02:21.3]} 18... Qf2 {[%clk 0:01:52.8]} 19.
Rf1 {[%clk 0:01:55.9]} 19... Qxg2 {[%clk 0:01:49.3]} 20. Nc5 {[%clk 0:01:50.2]}
20... Nxe5 {[%clk 0:01:34.2]} 21. Qxa7 {[%clk 0:01:48.9]} 1-0

[Event "Betsys MČR v online bleskovém šachu 2021"]
[Site "Chess.com"]
[Date "2021.04.17"]
[Round "11"]
[White "DONSANMIGUEL"]
[Black "Hollow_Head"]
[Result "1-0"]
[WhiteElo "1784"]
[BlackElo "1090"]
[TimeControl "180+1"]
[EndTime "10:46:38 PDT"]
[Termination "Uživatel DONSANMIGUEL zvítězil matem"]

1. e4 {[%clk 0:02:23]} 1... e5 {[%clk 0:02:59]} 2. Nf3 {[%clk 0:02:21.8]} 2...
Nc6 {[%clk 0:02:59.2]} 3. d4 {[%clk 0:02:22.1]} 3... exd4 {[%clk 0:02:58.8]} 4.
Bc4 {[%clk 0:02:22.6]} 4... Nf6 {[%clk 0:02:57.2]} 5. e5 {[%clk 0:02:22.1]} 5...
Ne4 {[%clk 0:02:56.4]} 6. Nxd4 {[%clk 0:02:18.4]} 6... Nxd4 {[%clk 0:02:56.1]}
7. Qxd4 {[%clk 0:02:16.8]} 7... Qh4 {[%clk 0:02:55.8]} 8. Nd2 {[%clk 0:01:52.2]}
8... Nxd2 {[%clk 0:02:54.5]} 9. Qxh4 {[%clk 0:01:50.6]} 9... Be7 {[%clk
0:02:50.6]} 10. Qf4 {[%clk 0:01:47.1]} 10... f6 {[%clk 0:02:46.6]} 11. Bxd2
{[%clk 0:01:42.5]} 11... d6 {[%clk 0:02:43.7]} 12. exf6 {[%clk 0:01:34.3]} 12...
gxf6 {[%clk 0:02:43.9]} 13. Qh6 {[%clk 0:01:31.3]} 13... Rf8 {[%clk 0:02:42.3]}
14. Qh5+ {[%clk 0:01:30.7]} 14... Kd8 {[%clk 0:02:41.5]} 15. Qxh7 {[%clk
0:01:30.1]} 15... Re8 {[%clk 0:02:38.4]} 16. O-O-O {[%clk 0:01:28.1]} 16... Bf8
{[%clk 0:02:38.2]} 17. Bc3 {[%clk 0:01:14.2]} 17... Re7 {[%clk 0:02:37.8]} 18.
Qg8 {[%clk 0:01:12.4]} 18... Re8 {[%clk 0:02:35.1]} 19. Rhe1 {[%clk 0:01:09.8]}
19... Be7 {[%clk 0:02:32.3]} 20. Qf7 {[%clk 0:01:05]} 20... Bd7 {[%clk
0:02:30.1]} 21. Be6 {[%clk 0:00:58.8]} 21... Bxe6 {[%clk 0:02:25.9]} 22. Qxe6
{[%clk 0:00:55.8]} 22... Rc8 {[%clk 0:02:23.2]} 23. Bxf6 {[%clk 0:00:53.5]}
23... c6 {[%clk 0:02:19.4]} 24. Qxd6# {[%clk 0:00:46.7]} 1-0